fUSD/lending_fUSD_20240424
["ID","MTS","AMOUNT","RATE_DAILY","PERIOD"]
[323417155,1713974339584,-2381.46,0.00010958,2]
[323417156,1713974339606,-500.0,0.00010958,2]
[323417157,1713974339627,-500.0,0.00010958,2]
[323417158,1713974339650,-500.0,0.00010958,2]
[323417159,1713974339671,-1740.66,0.00010958,2]
[323417160,1713974339692,-4387.7,0.00010958,2]
[323417161,1713974339715,-500.0,0.00010958,2]
[323417162,1713974339736,-500.0,0.00010958,2]
[323417163,1713974339757,-610.56,0.00010958,2]
[323417164,1713974339778,-1233.86,0.00010958,2]
[323417165,1713974339800,-500.0,0.00010958,2]
[323417166,1713974339824,-500.0,0.00010958,2]
[323417167,1713974339848,-719.0,0.00010958,2]
[323417168,1713974339871,-500.0,0.00010958,2]
[323417169,1713974339893,-500.0,0.00010958,2]
[323417170,1713974339915,-500.0,0.00010958,2]
[323417171,1713974339939,-2044.63,0.00010958,2]
[323417172,1713974339960,-5634.72,0.00010958,2]
[323417173,1713974339983,-500.0,0.00010958,2]
[323417174,1713974340005,-500.0,0.00010958,2]
[323417175,1713974340026,-500.0,0.00010958,2]
[323417176,1713974340048,-6125.96,0.00010958,2]
[323417177,1713974340071,-1262.07,0.00010958,2]
[323417178,1713974340094,-500.0,0.00010958,2]
[323417179,1713974340117,-500.0,0.00010958,2]
[323417180,1713974340140,-558.66,0.00010958,2]
[323417181,1713974340161,-500.0,0.00010958,2]
[323417182,1713974340184,-500.0,0.00010958,2]
[323417183,1713974340206,-500.0,0.00010958,2]
[323417184,1713974340234,-1517.78,0.00010958,2]
[323417185,1713974340257,-390.02991804,0.00010958,2]
[323417186,1713974340280,-500.85,0.00010958,2]
[323417187,1713974340304,-4129.56,0.00010958,2]
[323417188,1713974340328,-500.0,0.00010958,2]
[323417189,1713974340350,-1025.82,0.00010958,2]
[323417190,1713974340371,-500.0,0.00010958,2]
[323417191,1713974340394,-500.0,0.00010958,2]
[323417192,1713974340416,-500.0,0.00010958,2]
[323417193,1713974340438,-2356.31,0.00010958,2]
[323417194,1713974340460,-2033.23,0.00010958,2]
[323417195,1713974340484,-500.0,0.00010958,2]
[323417196,1713974340508,-500.0,0.00010958,2]
[323417197,1713974340531,-500.0,0.00010958,2]
[323417198,1713974340553,-12148.02,0.00010958,2]
[323417199,1713974340576,-549.57,0.00010958,2]
[323417200,1713974340599,-4017.17,0.00010958,2]
[323417201,1713974340622,-500.0,0.00010958,2]
[323417202,1713974340644,-500.0,0.00010958,2]
[323417203,1713974340666,-1662.82,0.00010958,2]
[323417204,1713974340689,-1453.66,0.00010958,2]
[323417205,1713974340710,-500.0,0.00010958,2]
[323417206,1713974340733,-4687.04,0.00010958,2]
[323417207,1713974340755,-3185.77,0.00010958,2]
[323417208,1713974340779,-500.0,0.00010958,2]
[323417209,1713974340800,-573.12,0.00010958,2]
[323417210,1713974340825,-500.0,0.00010958,2]
[323417211,1713974340849,-1725.31,0.00010958,2]
[323417212,1713974340870,-1134.85,0.00010958,2]
[323417213,1713974340891,-500.0,0.00010958,2]
[323417214,1713974340912,-506.5,0.00010958,2]
[323417215,1713974340934,-3594.68,0.00010958,2]
[323417216,1713974340957,-831.01,0.00010958,2]
[323417217,1713974340982,-561.38,0.00010958,2]
[323417218,1713974341004,-500.0,0.00010958,2]
[323417219,1713974341026,-500.0,0.00010958,2]
[323417220,1713974341049,-1486.18,0.00010958,2]
[323417221,1713974341071,-1492.11,0.00010958,2]
[323417222,1713974341094,-500.0,0.00010958,2]
[323417223,1713974341115,-500.0,0.00010958,2]
[323417224,1713974341138,-1100.09,0.00010958,2]
[323417225,1713974341160,-500.0,0.00010958,2]
[323417226,1713974341386,-508.25,0.00010958,2]
[323417227,1713974341409,-500.0,0.00010958,2]
[323417228,1713974341433,-839.46,0.00010958,2]
[323417229,1713974341455,-6645.16,0.00010958,2]
[323417230,1713974341477,-500.0,0.00010958,2]
[323417231,1713974341499,-500.0,0.00010958,2]
[323417232,1713974341519,-2833.42,0.00010958,2]
[323417233,1713974341542,-2063.16,0.00010958,2]
[323417234,1713974341564,-500.0,0.00010958,2]
[323417235,1713974341585,-500.0,0.00010958,2]
[323417236,1713974341607,-500.0,0.00010958,2]
[323417237,1713974341630,-500.0,0.00010958,2]
[323417238,1713974341651,-500.0,0.00010958,2]
[323417239,1713974341673,-1611.69,0.00010958,2]
[323417240,1713974341694,-155.0,0.00010958,2]
[323417241,1713974341717,-1118.2,0.00010958,2]
[323417242,1713974341739,-1552.26,0.00010958,2]
[323417243,1713974341761,-2889.9,0.00010958,2]
[323417244,1713974341785,-500.0,0.00010958,2]
[323417245,1713974341807,-748.95,0.00010958,2]
[323417246,1713974341828,-1599.11,0.00010958,2]
[323417247,1713974341852,-4292.87,0.00010958,2]
[323417248,1713974341879,-9965.52,0.00010958,2]
[323417249,1713974341900,-2740.79,0.00010958,2]
[323417250,1713974341922,-1897.77,0.00010958,2]
[323417251,1713974341944,-500.0,0.00010958,2]
[323417252,1713974341968,-2055.94,0.00010958,2]
[323417253,1713974341990,-508.64407216,0.00010958,2]
[323417254,1713974342011,-567.37,0.00010958,2]
[323417255,1713974342034,-1075.7,0.00010958,2]
[323417256,1713974342055,-500.0,0.00010958,2]
[323417257,1713974342078,-3036.84,0.00010958,2]
[323417258,1713974342101,-1227.5,0.00010958,2]
[323417259,1713974342123,-500.0,0.00010958,2]
[323417260,1713974342148,-500.0,0.00010958,2]
[323417261,1713974342170,-776.19,0.00010958,2]
[323417262,1713974342192,-532.07617958,0.00010958,2]
[323417263,1713974342216,-500.0,0.00010958,2]
[323417264,1713974342241,-2037.08,0.00010958,2]
[323417265,1713974342264,-500.0,0.00010958,2]
[323417266,1713974342287,-500.0,0.00010958,2]
[323417267,1713974342309,-500.0,0.00010958,2]
[323417268,1713974342334,-1860.58,0.00010958,2]
[323417269,1713974342357,-1584.3,0.00010958,2]
[323417270,1713974342380,-500.0,0.00010958,2]
[323417271,1713974342403,-1977.79,0.00010958,2]
[323417272,1713974342427,-622.47,0.00010958,2]
[323417273,1713974342450,-799.45,0.00010958,2]
[323417274,1713974342477,-780.78,0.00010958,2]
[323417275,1713974342499,-611.49,0.00010958,2]
[323417276,1713974342521,-1686.16,0.00010958,2]
[323417277,1713974342543,-500.0,0.00010958,2]
[323417278,1713974342564,-2039.83,0.00010958,2]
[323417279,1713974342586,-500.0,0.00010958,2]
[323417280,1713974342609,-2352.69,0.00010958,2]
[323417281,1713974342632,-1608.66,0.00010958,2]
[323417282,1713974342654,-500.0,0.00010958,2]
[323417283,1713974342676,-500.0,0.00010958,2]
[323417284,1713974342698,-500.0,0.00010958,2]
[323417285,1713974342720,-500.0,0.00010958,2]
[323417286,1713974342743,-500.0,0.00010958,2]
[323417287,1713974342764,-500.0,0.00010958,2]
[323417288,1713974342786,-500.0,0.00010958,2]
[323417289,1713974342808,-1266.55,0.00010958,2]
[323417290,1713974342830,-573.13,0.00010958,2]
[323417291,1713974342852,-3973.23,0.00010958,2]
[323417292,1713974342874,-500.0,0.00010958,2]
[323417293,1713974342898,-515.18,0.00010958,2]
[323417294,1713974342920,-4233.35,0.00010958,2]
[323417295,1713974342942,-500.0,0.00010958,2]
[323417296,1713974342966,-941.21,0.00010958,2]
[323417297,1713974342988,-646.68,0.00010958,2]
[323417298,1713974343009,-500.0,0.00010958,2]
[323417299,1713974343031,-500.0,0.00010958,2]
[323417300,1713974343053,-500.0,0.00010958,2]
[323417301,1713974343077,-2665.06,0.00010958,2]
[323417302,1713974343099,-500.0,0.00010958,2]
[323417303,1713974343122,-3379.25,0.00010958,2]
[323417304,1713974343149,-500.0,0.00010958,2]
[323417305,1713974343171,-796.39,0.00010958,2]
[323417306,1713974343194,-7878.29,0.00010958,2]
[323417307,1713974343219,-500.0,0.00010958,2]
[323417308,1713974343246,-256.12563931,0.00010958,2]
[323417309,1713974343272,-500.0,0.00010958,2]
[323417310,1713974343296,-1076.77,0.00010958,2]
[323417311,1713974343321,-500.0,0.00010958,2]
[323417312,1713974343345,-500.0,0.00010958,2]
[323417313,1713974343368,-500.0,0.00010958,2]
[323417314,1713974343391,-500.0,0.00010958,2]
[323417315,1713974343414,-500.0,0.00010958,2]
[323417316,1713974343436,-500.0,0.00010958,2]
[323417317,1713974343458,-500.0,0.00010958,2]
[323417318,1713974343485,-5805.41,0.00010958,2]
[323417319,1713974343508,-3290.69,0.00010958,2]
[323417320,1713974343530,-2911.76,0.00010958,2]
[323417321,1713974343551,-561.38,0.00010958,2]
[323417322,1713974343572,-500.0,0.00010958,2]
[323417323,1713974343594,-773.98,0.00010958,2]
[323417324,1713974343615,-500.0,0.00010958,2]
[323417325,1713974343637,-500.0,0.00010958,2]
[323417326,1713974343658,-2546.58,0.00010958,2]
[323417327,1713974343679,-500.0,0.00010958,2]
[323417328,1713974343700,-2059.9,0.00010958,2]
[323417329,1713974343724,-500.0,0.00010958,2]
[323417330,1713974343746,-500.0,0.00010958,2]
[323417331,1713974343770,-500.0,0.00010958,2]
[323417332,1713974343792,-500.0,0.00010958,2]
[323417333,1713974343813,-500.0,0.00010958,2]
[323417334,1713974343835,-1014.03,0.00010958,2]
[323417335,1713974343858,-500.0,0.00010958,2]
[323417336,1713974343879,-500.0,0.00010958,2]
[323417337,1713974343901,-939.35,0.00010958,2]
[323417338,1713974343923,-500.0,0.00010958,2]
[323417339,1713974343946,-877.21,0.00010958,2]
[323417340,1713974343969,-877.21,0.00010958,2]
[323417341,1713974343990,-500.0,0.00010958,2]
[323417342,1713974344012,-1950.58,0.00010958,2]
[323417343,1713974344036,-800.42,0.00010958,2]
[323417344,1713974344059,-5490.06,0.00010958,2]
[323417345,1713974344082,-500.0,0.00010958,2]
[323417346,1713974344104,-718.9,0.00010958,2]
[323417347,1713974344128,-1128.49,0.00010958,2]
[323417348,1713974344151,-500.0,0.00010958,2]
[323417349,1713974344174,-500.0,0.00010958,2]
[323417350,1713974344196,-500.0,0.00010958,2]
[323417351,1713974344221,-6231.15,0.00010958,2]
[323417352,1713974344247,-500.0,0.00010958,2]
[323417353,1713974344272,-500.0,0.00010958,2]
[323417354,1713974344293,-500.0,0.00010958,2]
[323417355,1713974344316,-500.0,0.00010958,2]
[323417356,1713974344338,-500.0,0.00010958,2]
[323417357,1713974344361,-500.0,0.00010958,2]
[323417358,1713974344383,-2097.4,0.00010958,2]
[323417359,1713974344405,-500.0,0.00010958,2]
[323417360,1713974344428,-3802.5,0.00010958,2]
[323417361,1713974344450,-1279.5,0.00010958,2]
[323417362,1713974344475,-500.0,0.00010958,2]
[323417363,1713974344496,-6609.13,0.00010958,2]
[323417364,1713974344517,-500.0,0.00010958,2]
[323417365,1713974344538,-500.0,0.00010958,2]
[323417366,1713974344560,-500.0,0.00010958,2]
[323417367,1713974344582,-500.0,0.00010958,2]
[323417368,1713974344603,-593.41,0.00010958,2]
[323417369,1713974344625,-2547.09,0.00010958,2]
[323417370,1713974344646,-500.0,0.00010958,2]
[323417371,1713974344667,-607.77,0.00010958,2]
[323417372,1713974344689,-5610.85,0.00010958,2]
[323417373,1713974344711,-500.0,0.00010958,2]
[323417374,1713974344738,-547.0,0.00010958,2]
[323417375,1713974344759,-4135.02,0.00010958,2]
[323417376,1713974344781,-2323.35,0.00010958,2]
[323417377,1713974344802,-2123.93,0.00010958,2]
[323417378,1713974344823,-467.47919955,0.00010958,2]
[323417379,1713974344845,-2766.16,0.00010958,2]
[323417380,1713974344867,-500.0,0.00010958,2]
[323417381,1713974344889,-194631.28797313,0.00011,2]
[323417385,1713974639886,23900.0,9.965e-05,2]
[323417386,1713974653990,520.0,9.93e-05,2]
[323417387,1713974656452,5999.24929346,0.00016,120]
[323417388,1713974658212,5368.71202687,0.0001,2]
[323417389,1713974670641,200000.0,0.0001,2]
[323417390,1713974677284,200000.0,0.0001,2]
[323417391,1713974684429,147402.07946756,0.0001,2]
[323417392,1713974720495,678.39,8.219e-05,2]
[323417393,1713974749016,20174.45661466,8.219e-05,2]
[323417394,1713974771043,16277.50975562,8.219e-05,2]
[323417395,1713974960178,151.0,0.00020469,120]
[323417428,1713975032594,-186.91,9.461e-05,2]
[323417429,1713975032603,-1539.16341833,9.466e-05,2]
[323417430,1713975032612,-1539.16341833,9.49e-05,2]
[323417431,1713975032622,-149.9661882,9.514e-05,2]
[323417432,1713975032633,-1611.80000001,9.514e-05,2]
[323417482,1713975038624,-529.23381179,9.514e-05,2]
[323417483,1713975038634,-763.66618821,9.514e-05,2]
[323417669,1713975040544,-775.49723012,9.514e-05,2]
[323417671,1713975040553,-500.0,9.515e-05,2]
[323417673,1713975040563,-2010.46596149,9.547e-05,2]
[323417675,1713975040575,-2938.18526738,9.547e-05,2]
[323417686,1713975040664,-279.36656309,9.547e-05,2]
[323417693,1713975040721,-6306.90220804,9.547e-05,2]
[323417695,1713975040730,-1859.61,9.547e-05,2]
[323417697,1713975040740,-1477.31,9.559e-05,2]
[323417699,1713975040756,-6132.2343,9.561e-05,2]
[323417701,1713975040765,-1852.42,9.565e-05,2]
[323417703,1713975040775,-1138.47,9.619e-05,2]
[323417705,1713975040786,-1644.41,9.708e-05,2]
[323417708,1713975040796,-250.0,9.711e-05,2]
[323417709,1713975040805,-4360.99,9.711e-05,2]
[323417711,1713975040815,-9056.14,9.785e-05,2]
[323417714,1713975040825,-3079.95,9.856e-05,2]
[323417716,1713975040835,-170.55,9.856e-05,2]
[323417718,1713975040844,-222597.92,0.0001,2]
[323417719,1713975040853,-323.90952101,0.00010001,2]
[323417721,1713975040863,-4041.77,0.00010002,2]
[323417724,1713975040872,-4928.14,0.0001004,2]
[323417726,1713975040882,-10265.0,0.0001032,2]
[323417727,1713975040891,-163.01,0.00010365,2]
[323417730,1713975040901,-678.39,0.00010468,2]
[323417731,1713975040910,-163.01,0.00010473,2]
[323417734,1713975040919,-163.01,0.00010581,2]
[323417735,1713975040928,-833.33691221,0.00010669,2]
[323417738,1713975040938,-1300.07738684,0.00010669,2]
[323417739,1713975040947,-163.01,0.00010689,2]
[323417742,1713975040957,-163.01,0.00010797,2]
[323417743,1713975040965,-400.0,0.000108,3]
[323417745,1713975040974,-224.90583068,0.00010858,2]
[323417747,1713975040983,-800.0,0.000109,3]
[323417749,1713975040996,-163.01,0.00010905,2]
[323417752,1713975041006,-155.0,0.00010956,2]
[323417754,1713975041016,-408.40214741,0.00010956,2]
[323417756,1713975041025,-155.0,0.00010956,2]
[323417758,1713975041034,-1994.63391406,0.00010956,2]
[323417760,1713975041043,-1351.45342977,0.00010956,2]
[323417762,1713975041052,-444.46701666,0.00010956,2]
[323417764,1713975041062,-526.15864625,0.00010957,2]
[323417766,1713975041071,-500.0,0.00010958,2]
[323417768,1713975041080,-500.0,0.00010958,2]
[323417770,1713975041089,-500.0,0.00010958,2]
[323417772,1713975041099,-500.0,0.00010958,2]
[323417774,1713975041110,-500.0,0.00010958,2]
[323417776,1713975041119,-500.0,0.00010958,2]
[323417778,1713975041127,-500.0,0.00010958,2]
[323417780,1713975041136,-550.72,0.00010958,2]
[323417782,1713975041145,-500.0,0.00010958,2]
[323417784,1713975041154,-500.0,0.00010958,2]
[323417786,1713975041163,-500.0,0.00010958,2]
[323417788,1713975041172,-581.57,0.00010958,2]
[323417790,1713975041182,-500.0,0.00010958,2]
[323417792,1713975041191,-500.0,0.00010958,2]
[323417793,1713975041201,-500.0,0.00010958,2]
[323417795,1713975041212,-500.0,0.00010958,2]
[323417797,1713975041222,-556.03884954,0.00010958,2]
[323417799,1713975041232,-500.0,0.00010958,2]
[323417802,1713975041246,-500.41938183,0.00010958,2]
[323417803,1713975041256,-500.0,0.00010958,2]
[323417806,1713975041266,-500.0,0.00010958,2]
[323417807,1713975041276,-500.0,0.00010958,2]
[323417810,1713975041286,-500.0,0.00010958,2]
[323417811,1713975041296,-500.0,0.00010958,2]
[323417814,1713975041305,-500.0,0.00010958,2]
[323417815,1713975041315,-506.41,0.00010958,2]
[323417818,1713975041326,-500.0,0.00010958,2]
[323417820,1713975041335,-500.0,0.00010958,2]
[323417822,1713975041345,-500.0,0.00010958,2]
[323417824,1713975041355,-287.08177053,0.00010958,2]
[323417826,1713975041364,-500.0,0.00010958,2]
[323417828,1713975041374,-500.0,0.00010958,2]
[323417830,1713975041385,-500.0,0.00010958,2]
[323417857,1713975041644,-500.0,0.00010958,2]
[323417859,1713975041654,-500.0,0.00010958,2]
[323417861,1713975041663,-500.0,0.00010958,2]
[323417863,1713975041672,-500.0,0.00010958,2]
[323417865,1713975041682,-500.0,0.00010958,2]
[323417867,1713975041691,-701.17,0.00010958,2]
[323417869,1713975041700,-500.0,0.00010958,2]
[323417871,1713975041709,-500.0,0.00010958,2]
[323417872,1713975041718,-500.0,0.00010958,2]
[323417874,1713975041727,-649.48,0.00010958,2]
[323417876,1713975041736,-500.0,0.00010958,2]
[323417878,1713975041748,-500.0,0.00010958,2]
[323417880,1713975041757,-500.0,0.00010958,2]
[323417883,1713975041766,-500.0,0.00010958,2]
[323417884,1713975041775,-500.0,0.00010958,2]
[323417886,1713975041784,-500.0,0.00010958,2]
[323417889,1713975041793,-500.0,0.00010958,2]
[323417891,1713975041803,-500.0,0.00010958,2]
[323417893,1713975041812,-500.0,0.00010958,2]
[323417895,1713975041821,-500.30549827,0.00010958,2]
[323417897,1713975041831,-500.0,0.00010958,2]
[323417899,1713975041840,-500.0,0.00010958,2]
[323417901,1713975041849,-500.0,0.00010958,2]
[323417903,1713975041857,-500.0,0.00010958,2]
[323417905,1713975041867,-500.0,0.00010958,2]
[323417906,1713975041876,-500.0,0.00010958,2]
[323417907,1713975041885,-500.0,0.00010958,2]
[323417908,1713975041894,-500.0,0.00010958,2]
[323417909,1713975041902,-500.0,0.00010958,2]
[323417910,1713975041911,-500.0,0.00010958,2]
[323417911,1713975041920,-500.0,0.00010958,2]
[323417912,1713975041928,-500.0,0.00010958,2]
[323417913,1713975041937,-500.0,0.00010958,2]
[323417914,1713975041947,-500.0,0.00010958,2]
[323417915,1713975041956,-500.0,0.00010958,2]
[323417916,1713975041964,-500.0,0.00010958,2]
[323417917,1713975041973,-500.0,0.00010958,2]
[323417918,1713975041982,-500.0,0.00010958,2]
[323417919,1713975041993,-500.0,0.00010958,2]
[323417920,1713975042002,-500.0,0.00010958,2]
[323417922,1713975042011,-500.0,0.00010958,2]
[323417923,1713975042021,-500.0,0.00010958,2]
[323417925,1713975042029,-500.0,0.00010958,2]
[323417927,1713975042038,-632.40466127,0.00010958,2]
[323417929,1713975042048,-500.0,0.00010958,2]
[323417931,1713975042057,-500.0,0.00010958,2]
[323417933,1713975042067,-500.0,0.00010958,2]
[323417935,1713975042077,-523.51106533,0.00010958,2]
[323417938,1713975042086,-500.0,0.00010958,2]
[323417939,1713975042095,-500.0,0.00010958,2]
[323417941,1713975042104,-500.0,0.00010958,2]
[323417943,1713975042113,-500.0,0.00010958,2]
[323417946,1713975042123,-500.0,0.00010958,2]
[323417948,1713975042132,-500.0,0.00010958,2]
[323417950,1713975042141,-501.08614354,0.00010958,2]
[323417952,1713975042152,-500.0,0.00010958,2]
[323417954,1713975042162,-500.0,0.00010958,2]
[323417956,1713975042172,-500.0,0.00010958,2]
[323417957,1713975042181,-500.0,0.00010958,2]
[323417959,1713975042190,-500.0,0.00010958,2]
[323417962,1713975042200,-500.0,0.00010958,2]
[323417964,1713975042209,-500.0,0.00010958,2]
[323417965,1713975042218,-500.0,0.00010958,2]
[323417968,1713975042227,-500.0,0.00010958,2]
[323417969,1713975042237,-318.179362,0.00010958,2]
[323417972,1713975042249,-501.13,0.00010958,2]
[323417973,1713975042258,-500.0,0.00010958,2]
[323417975,1713975042267,-500.0,0.00010958,2]
[323417978,1713975042276,-500.0,0.00010958,2]
[323417979,1713975042286,-576.2703296,0.00010958,2]
[323417981,1713975042295,-500.0,0.00010958,2]
[323417984,1713975042305,-500.0,0.00010958,2]
[323417985,1713975042315,-500.0,0.00010958,2]
[323417987,1713975042324,-500.0,0.00010958,2]
[323417989,1713975042334,-500.0,0.00010958,2]
[323417991,1713975042343,-500.0,0.00010958,2]
[323417993,1713975042352,-500.56488008,0.00010958,2]
[323417996,1713975042362,-500.0,0.00010958,2]
[323417998,1713975042370,-500.0,0.00010958,2]
[323418000,1713975042380,-500.0,0.00010958,2]
[323418002,1713975042389,-500.0,0.00010958,2]
[323418004,1713975042399,-500.0,0.00010958,2]
[323418006,1713975042408,-1093.68,0.00010958,2]
[323418008,1713975042418,-500.0,0.00010958,2]
[323418010,1713975042427,-500.0,0.00010958,2]
[323418012,1713975042439,-500.0,0.00010958,2]
[323418013,1713975042448,-500.0,0.00010958,2]
[323418016,1713975042458,-500.0,0.00010958,2]
[323418018,1713975042467,-500.0,0.00010958,2]
[323418020,1713975042477,-661.58,0.00010958,2]
[323418022,1713975042487,-500.0,0.00010958,2]
[323418024,1713975042497,-500.0,0.00010958,2]
[323418026,1713975042506,-500.0,0.00010958,2]
[323418028,1713975042515,-500.0,0.00010958,2]
[323418029,1713975042525,-500.0,0.00010958,2]
[323418032,1713975042536,-500.0,0.00010958,2]
[323418034,1713975042545,-500.0,0.00010958,2]
[323418035,1713975042554,-500.0,0.00010958,2]
[323418037,1713975042563,-543.47,0.00010958,2]
[323418040,1713975042573,-500.0,0.00010958,2]
[323418042,1713975042582,-500.0,0.00010958,2]
[323418044,1713975042591,-500.0,0.00010958,2]
[323418045,1713975042600,-500.0,0.00010958,2]
[323418048,1713975042609,-500.0,0.00010958,2]
[323418050,1713975042619,-500.0,0.00010958,2]
[323418052,1713975042628,-500.0,0.00010958,2]
[323418053,1713975042637,-502.27,0.00010958,2]
[323418055,1713975042646,-500.0,0.00010958,2]
[323418057,1713975042656,-500.0,0.00010958,2]
[323418059,1713975042665,-500.0,0.00010958,2]
[323418062,1713975042675,-583.3414912,0.00010958,2]
[323418064,1713975042684,-500.0,0.00010958,2]
[323418066,1713975042693,-500.0,0.00010958,2]
[323418068,1713975042705,-500.0,0.00010958,2]
[323418070,1713975042714,-500.0,0.00010958,2]
[323418072,1713975042724,-500.0,0.00010958,2]
[323418074,1713975042733,-500.0,0.00010958,2]
[323418076,1713975042742,-500.0,0.00010958,2]
[323418078,1713975042752,-500.0,0.00010958,2]
[323418080,1713975042761,-500.0,0.00010958,2]
[323418082,1713975042770,-500.0,0.00010958,2]
[323418084,1713975042780,-1054.9,0.00010958,2]
[323418086,1713975042789,-553.61,0.00010958,2]
[323418088,1713975042799,-500.0,0.00010958,2]
[323418090,1713975042809,-500.0,0.00010958,2]
[323418092,1713975042818,-500.0,0.00010958,2]
[323418094,1713975042827,-500.0,0.00010958,2]
[323418096,1713975042837,-500.0,0.00010958,2]
[323418098,1713975042847,-500.0,0.00010958,2]
[323418100,1713975042856,-501.43180718,0.00010958,2]
[323418102,1713975042865,-362.35410617,0.00010958,2]
[323418104,1713975042874,-501.38463059,0.00010958,2]
[323418106,1713975042883,-500.0,0.00010958,2]
[323418108,1713975042892,-500.0,0.00010958,2]
[323418110,1713975042901,-500.0,0.00010958,2]
[323418112,1713975042910,-500.0,0.00010958,2]
[323418114,1713975042920,-500.0,0.00010958,2]
[323418116,1713975042929,-517.96906842,0.00010958,2]
[323418118,1713975042939,-500.0,0.00010958,2]
[323418120,1713975042947,-500.0,0.00010958,2]
[323418122,1713975042956,-500.0,0.00010958,2]
[323418124,1713975042965,-500.0,0.00010958,2]
[323418126,1713975042974,-500.0,0.00010958,2]
[323418128,1713975042984,-500.0,0.00010958,2]
[323418130,1713975042994,-613.21,0.00010958,2]
[323418132,1713975043003,-500.0,0.00010958,2]
[323418134,1713975043012,-677.11,0.00010958,2]
[323418136,1713975043021,-500.0,0.00010958,2]
[323418138,1713975043031,-549.98,0.00010958,2]
[323418140,1713975043040,-500.0,0.00010958,2]
[323418142,1713975043049,-627.85,0.00010958,2]
[323418145,1713975043058,-500.0,0.00010958,2]
[323418147,1713975043067,-500.0,0.00010958,2]
[323418149,1713975043076,-524.59,0.00010958,2]
[323418151,1713975043085,-500.0,0.00010958,2]
[323418153,1713975043095,-500.0,0.00010958,2]
[323418155,1713975043105,-500.0,0.00010958,2]
[323418157,1713975043114,-500.0,0.00010958,2]
[323418159,1713975043124,-500.0,0.00010958,2]
[323418162,1713975043134,-500.0,0.00010958,2]
[323418164,1713975043143,-500.0,0.00010958,2]
[323418167,1713975043153,-570.08,0.00010958,2]
[323418170,1713975043162,-2345.59,0.00010958,2]
[323418172,1713975043171,-500.0,0.00010958,2]
[323418174,1713975043179,-500.0,0.00010958,2]
[323418177,1713975043188,-500.0,0.00010958,2]
[323418180,1713975043197,-500.0,0.00010958,2]
[323418183,1713975043207,-500.0,0.00010958,2]
[323418186,1713975043216,-500.0,0.00010958,2]
[323418189,1713975043225,-500.0,0.00010958,2]
[323418192,1713975043235,-500.0,0.00010958,2]
[323418195,1713975043245,-500.0,0.00010958,2]
[323418197,1713975043255,-168.08919714,0.00010958,2]
[323418200,1713975043264,-651.05,0.00010958,2]
[323418203,1713975043273,-500.0,0.00010958,2]
[323418206,1713975043282,-2159.53,0.00010958,2]
[323418209,1713975043292,-500.0,0.00010958,2]
[323418212,1713975043301,-500.0,0.00010958,2]
[323418215,1713975043311,-500.0,0.00010958,2]
[323418219,1713975043320,-500.0,0.00010958,2]
[323418223,1713975043329,-500.0,0.00010958,2]